fUSD/lending_fUSD_20260205
["ID","MTS","AMOUNT","RATE_DAILY","PERIOD"]
[404602022,1770325832148,-89321.119,0.00014207,2]
[404602024,1770325832157,-562.97380228,0.00014208,2]
[404602026,1770325832167,-180.90687264,0.00014208,2]
[404602028,1770325832176,-436.0,0.00014225,2]
[404602030,1770325832186,-305.43284417,0.00014228,2]
[404602032,1770325832195,-2048.48,0.0001427,2]
[404602035,1770325832205,-166.66,0.00014279,2]
[404602037,1770325832214,-5107.24,0.00014296,2]
[404602039,1770325832224,-150.99,0.00014297,2]
[404602041,1770325832233,-6248.25,0.00014297,2]
[404602043,1770325832244,-4999.99,0.00014297,2]
[404602045,1770325832253,-9999.99,0.00014297,2]
[404602047,1770325832263,-299.99,0.00014297,2]
[404602049,1770325832272,-500.0,0.00014298,2]
[404602051,1770325832282,-500.0,0.00014298,2]
[404602053,1770325832291,-200.0,0.00014298,2]
[404602055,1770325832300,-500.0,0.00014298,2]
[404602058,1770325832313,-500.0,0.00014298,2]
[404602059,1770325832322,-500.0,0.00014298,2]
[404602062,1770325832333,-151.0,0.00014298,2]
[404602064,1770325832342,-500.0,0.00014298,2]
[404602066,1770325832352,-500.0,0.00014298,2]
[404602068,1770325832361,-151.0,0.00014298,2]
[404602070,1770325832372,-500.0,0.00014298,2]
[404602072,1770325832381,-500.0,0.00014298,2]
[404602074,1770325832391,-151.0,0.00014298,2]
[404602076,1770325832400,-500.0,0.00014298,2]
[404602078,1770325832409,-500.0,0.00014298,2]
[404602080,1770325832419,-151.0,0.00014298,2]
[404602082,1770325832428,-500.0,0.00014298,2]
[404602084,1770325832438,-500.0,0.00014298,2]
[404602086,1770325832448,-151.0,0.00014298,2]
[404602088,1770325832458,-500.0,0.00014298,2]
[404602090,1770325832468,-500.0,0.00014298,2]
[404602092,1770325832477,-151.0,0.00014298,2]
[404602094,1770325832487,-500.0,0.00014298,2]
[404602096,1770325832496,-500.0,0.00014298,2]
[404602098,1770325832506,-151.0,0.00014298,2]
[404602100,1770325832515,-500.0,0.00014298,2]
[404602102,1770325832524,-500.0,0.00014298,2]
[404602104,1770325832533,-151.0,0.00014298,2]
[404602106,1770325832543,-500.0,0.00014298,2]
[404602108,1770325832556,-500.0,0.00014298,2]
[404602110,1770325832566,-151.0,0.00014298,2]
[404602112,1770325832576,-500.0,0.00014298,2]
[404602114,1770325832585,-500.0,0.00014298,2]
[404602116,1770325832594,-151.0,0.00014298,2]
[404602118,1770325832604,-500.0,0.00014298,2]
[404602120,1770325832614,-151.0,0.00014298,2]
[404602122,1770325832623,-151.0,0.00014298,2]
[404602124,1770325832633,-151.0,0.00014298,2]
[404602126,1770325832642,-151.0,0.00014298,2]
[404602128,1770325832651,-200.0,0.00014298,2]
[404602130,1770325832660,-151.0,0.00014298,2]
[404602132,1770325832670,-151.0,0.00014298,2]
[404602133,1770325832679,-151.0,0.00014298,2]
[404602136,1770325832688,-151.0,0.00014298,2]
[404602137,1770325832698,-151.0,0.00014298,2]
[404602139,1770325832708,-151.0,0.00014298,2]
[404602141,1770325832717,-151.0,0.00014298,2]
[404602143,1770325832727,-151.0,0.00014298,2]
[404602145,1770325832736,-151.0,0.00014298,2]
[404602147,1770325832746,-151.0,0.00014298,2]
[404602149,1770325832756,-151.0,0.00014298,2]
[404602151,1770325832766,-151.0,0.00014298,2]
[404602153,1770325832776,-151.0,0.00014298,2]
[404602155,1770325832786,-151.0,0.00014298,2]
[404602157,1770325832795,-151.0,0.00014298,2]
[404602159,1770325832809,-151.0,0.00014298,2]
[404602161,1770325832818,-151.0,0.00014298,2]
[404602163,1770325832828,-488.88907371,0.00014306,2]
[404602165,1770325832838,-500.0,0.00014306,2]
[404602167,1770325832847,-500.0,0.00014306,2]
[404602168,1770325832856,-500.0,0.00014306,2]
[404602169,1770325832866,-588.58525681,0.00014306,2]
[404602170,1770325832875,-500.0,0.00014306,2]
[404602171,1770325832885,-500.0,0.00014306,2]
[404602172,1770325832894,-500.0,0.00014306,2]
[404602173,1770325832903,-500.0,0.00014306,2]
[404602174,1770325832913,-500.0,0.00014306,2]
[404602175,1770325832922,-500.0,0.00014306,2]
[404602176,1770325832931,-500.0,0.00014306,2]
[404602177,1770325832940,-500.0,0.00014306,2]
[404602178,1770325832950,-500.0,0.00014306,2]
[404602179,1770325832959,-603.19668382,0.00014306,2]
[404602180,1770325832969,-930.53,0.00014306,2]
[404602181,1770325832978,-930.53,0.00014306,2]
[404602182,1770325832987,-930.53,0.00014306,2]
[404602183,1770325832996,-930.53,0.00014306,2]
[404602184,1770325833006,-930.53,0.00014306,2]
[404602185,1770325833015,-930.53,0.00014306,2]
[404602186,1770325833024,-930.53,0.00014306,2]
[404602187,1770325833034,-930.53,0.00014306,2]
[404602188,1770325833043,-930.53,0.00014306,2]
[404602189,1770325833054,-930.53,0.00014306,2]
[404602190,1770325833064,-930.53,0.00014306,2]
[404602191,1770325833078,-930.53,0.00014306,2]
[404602192,1770325833087,-930.53,0.00014306,2]
[404602193,1770325833096,-930.53,0.00014306,2]
[404602194,1770325833107,-500.0,0.00014306,2]
[404602195,1770325833117,-500.0,0.00014306,2]
[404602196,1770325833127,-500.0,0.00014306,2]
[404602197,1770325833136,-500.0,0.00014306,2]
[404602198,1770325833147,-500.0,0.00014306,2]
[404602199,1770325833156,-500.0,0.00014306,2]
[404602200,1770325833166,-500.0,0.00014306,2]
[404602201,1770325833175,-500.0,0.00014306,2]
[404602202,1770325833185,-500.0,0.00014306,2]
[404602203,1770325833194,-620.13152007,0.00014306,2]
[404602204,1770325833203,-829.94,0.00014306,2]
[404602205,1770325833213,-829.94,0.00014306,2]
[404602206,1770325833222,-829.94,0.00014306,2]
[404602207,1770325833231,-829.94,0.00014306,2]
[404602208,1770325833241,-829.94,0.00014306,2]
[404602209,1770325833250,-829.94,0.00014306,2]
[404602210,1770325833260,-829.94,0.00014306,2]
[404602211,1770325833270,-829.94,0.00014306,2]
[404602212,1770325833280,-829.94,0.00014306,2]
[404602213,1770325833290,-829.94,0.00014306,2]
[404602214,1770325833299,-829.94,0.00014306,2]
[404602215,1770325833314,-829.94,0.00014306,2]
[404602216,1770325833324,-829.94,0.00014306,2]
[404602217,1770325833334,-829.94,0.00014306,2]
[404602218,1770325833344,-999.99,0.00014306,2]
[404602219,1770325833354,-150.99,0.00014306,2]
[404602220,1770325833366,-9900.5,0.00014306,2]
[404602221,1770325833376,-500.0,0.00014306,2]
[404602222,1770325833386,-298.04266133,0.00014306,2]
[404602223,1770325833395,-500.0,0.00014306,2]
[404602224,1770325833405,-500.0,0.00014306,2]
[404602225,1770325833415,-512.51496399,0.00014306,2]
[404602226,1770325833425,-500.0,0.00014306,2]
[404602227,1770325833435,-500.0,0.00014306,2]
[404602228,1770325833445,-500.0,0.00014306,2]
[404602229,1770325833454,-500.0,0.00014306,2]
[404602230,1770325833464,-500.0,0.00014306,2]
[404602231,1770325833474,-500.0,0.00014306,2]
[404602232,1770325833484,-500.0,0.00014306,2]
[404602233,1770325833494,-500.0,0.00014306,2]
[404602234,1770325833503,-500.0,0.00014306,2]
[404602235,1770325833513,-500.0,0.00014306,2]
[404602236,1770325833523,-500.0,0.00014306,2]
[404602237,1770325833533,-500.0,0.00014306,2]
[404602238,1770325833543,-500.0,0.00014306,2]
[404602239,1770325833557,-500.0,0.00014306,2]
[404602240,1770325833570,-500.0,0.00014306,2]
[404602241,1770325833579,-500.0,0.00014306,2]
[404602242,1770325833588,-500.0,0.00014306,2]
[404602243,1770325833598,-500.0,0.00014306,2]
[404602244,1770325833607,-500.0,0.00014306,2]
[404602245,1770325833615,-500.0,0.00014306,2]
[404602246,1770325833875,-549.3943227,0.00014306,2]
[404602247,1770325833885,-585.98,0.00014306,2]
[404602248,1770325833895,-585.98,0.00014306,2]
[404602249,1770325833904,-585.98,0.00014306,2]
[404602250,1770325833914,-585.98,0.00014306,2]
[404602251,1770325833923,-585.98,0.00014306,2]
[404602252,1770325833933,-585.98,0.00014306,2]
[404602253,1770325833943,-585.98,0.00014306,2]
[404602254,1770325833953,-585.98,0.00014306,2]
[404602255,1770325833962,-585.98,0.00014306,2]
[404602256,1770325833972,-585.98,0.00014306,2]
[404602257,1770325833982,-585.98,0.00014306,2]
[404602258,1770325833991,-585.98,0.00014306,2]
[404602259,1770325834001,-585.98,0.00014306,2]
[404602260,1770325834011,-585.98,0.00014306,2]
[404602261,1770325834022,-500.0,0.00014306,2]
[404602262,1770325834031,-500.0,0.00014306,2]
[404602263,1770325834041,-500.0,0.00014306,2]
[404602264,1770325834051,-500.0,0.00014306,2]
[404602265,1770325834071,-500.0,0.00014306,2]
[404602266,1770325834082,-500.0,0.00014306,2]
[404602267,1770325834092,-500.0,0.00014306,2]
[404602268,1770325834102,-500.0,0.00014306,2]
[404602269,1770325834113,-500.0,0.00014306,2]
[404602270,1770325834123,-500.0,0.00014306,2]
[404602271,1770325834133,-500.0,0.00014306,2]
[404602272,1770325834145,-500.0,0.00014306,2]
[404602273,1770325834155,-500.0,0.00014306,2]
[404602274,1770325834165,-500.0,0.00014306,2]
[404602275,1770325834176,-500.0,0.00014306,2]
[404602276,1770325834185,-500.0,0.00014306,2]
[404602277,1770325834195,-500.0,0.00014306,2]
[404602278,1770325834204,-500.0,0.00014306,2]
[404602279,1770325834215,-500.0,0.00014306,2]
[404602280,1770325834224,-500.0,0.00014306,2]
[404602281,1770325834234,-500.0,0.00014306,2]
[404602282,1770325834244,-500.0,0.00014306,2]
[404602283,1770325834253,-500.0,0.00014306,2]
[404602284,1770325834263,-500.0,0.00014306,2]
[404602285,1770325834272,-500.0,0.00014306,2]
[404602286,1770325834282,-500.0,0.00014306,2]
[404602287,1770325834291,-500.0,0.00014306,2]
[404602288,1770325834301,-500.0,0.00014306,2]
[404602289,1770325834317,-500.0,0.00014306,2]
[404602290,1770325834327,-500.0,0.00014306,2]
[404602291,1770325834336,-500.0,0.00014306,2]
[404602292,1770325834346,-500.0,0.00014306,2]
[404602293,1770325834355,-500.0,0.00014306,2]
[404602294,1770325834366,-500.0,0.00014306,2]
[404602295,1770325834375,-500.0,0.00014306,2]
[404602296,1770325834385,-500.0,0.00014306,2]
[404602297,1770325834394,-500.0,0.00014306,2]
[404602298,1770325834404,-500.0,0.00014306,2]
[404602299,1770325834413,-500.0,0.00014306,2]
[404602300,1770325834423,-500.0,0.00014306,2]
[404602301,1770325834432,-500.0,0.00014306,2]
[404602302,1770325834443,-500.0,0.00014306,2]
[404602303,1770325834452,-500.0,0.00014306,2]
[404602304,1770325834462,-500.0,0.00014306,2]
[404602305,1770325834471,-184.48177955,0.00014306,2]
[404602306,1770325834480,-885.56,0.00014306,2]
[404602307,1770325834490,-885.56,0.00014306,2]
[404602308,1770325834499,-885.56,0.00014306,2]
[404602309,1770325834509,-885.56,0.00014306,2]
[404602310,1770325834519,-885.56,0.00014306,2]
[404602311,1770325834528,-885.56,0.00014306,2]
[404602312,1770325834538,-885.56,0.00014306,2]
[404602313,1770325834548,-885.56,0.00014306,2]
[404602314,1770325834563,-885.56,0.00014306,2]
[404602315,1770325834573,-885.56,0.00014306,2]
[404602316,1770325834583,-885.56,0.00014306,2]
[404602317,1770325834592,-885.56,0.00014306,2]
[404602318,1770325834603,-885.56,0.00014306,2]
[404602319,1770325834613,-885.56,0.00014306,2]
[404602320,1770325834622,-500.0,0.00014306,2]
[404602321,1770325834632,-1000.0,0.00014306,2]
[404602322,1770325834643,-5107.24,0.00014322,2]
[404602323,1770325834654,-5107.24,0.00014348,2]
[404602324,1770325834663,-5107.24,0.00014374,2]
[404602325,1770325834673,-1331.96,0.000144,2]
[404602326,1770325834682,-5107.24,0.000144,2]
[404602327,1770325834692,-5107.24,0.00014426,2]
[404602328,1770325834702,-5107.24,0.00014452,2]
[404602329,1770325834712,-5107.24,0.00014479,2]
[404602330,1770325834721,-33298.1738,0.00014501,2]
[404602331,1770325834731,-5107.24,0.00014505,2]
[404602332,1770325834740,-5107.24,0.00014531,2]
[404602333,1770325834750,-5107.24,0.00014557,2]
[404602334,1770325834760,-500.0,0.0001458,2]
[404602335,1770325834769,-5107.24,0.00014583,2]
[404602336,1770325834779,-622.18622774,0.000146,2]
[404602337,1770325834788,-500.0,0.000146,2]
[404602338,1770325834798,-452.84774832,0.000146,2]
[404602339,1770325834813,-412.57925422,0.000146,2]
[404602340,1770325834823,-500.0,0.000146,2]
[404602341,1770325834833,-500.0,0.000146,2]
[404602342,1770325834843,-500.0,0.000146,2]
[404602343,1770325834853,-500.0,0.000146,2]
[404602344,1770325834863,-500.0,0.000146,2]
[404602345,1770325834873,-500.0,0.000146,2]
[404602346,1770325834883,-501.22725125,0.000146,2]
[404602347,1770325834892,-500.0,0.000146,2]
[404602348,1770325834902,-500.0,0.000146,2]
[404602349,1770325834912,-500.0,0.000146,2]
[404602350,1770325834921,-500.0,0.000146,2]
[404602351,1770325834931,-5107.24,0.00014609,2]
[404602352,1770325834941,-151.0,0.00014634,2]
[404602353,1770325834950,-151.0,0.00014634,2]
[404602354,1770325834959,-5107.24,0.00014635,2]
[404602355,1770325834969,-173.89,0.0001465,2]
[404602356,1770325834978,-5107.24,0.00014662,2]
[404602357,1770325834987,-5107.24,0.00014688,2]
[404602358,1770325834997,-166.66,0.00014735,2]
[404602359,1770325835006,-500.0,0.00014799,2]
[404602360,1770325835015,-234.04112718,0.00014799,2]
[404602361,1770325835025,-500.0,0.00014799,2]
[404602362,1770325835034,-500.0,0.00014799,2]
[404602363,1770325835044,-599.11588893,0.00014799,2]
[404602364,1770325835055,-500.0,0.00014799,2]
[404602365,1770325835068,-500.0,0.00014799,2]
[404602366,1770325835079,-500.0,0.00014799,2]
[404602367,1770325835088,-500.0,0.00014799,2]
[404602368,1770325835098,-500.0,0.00014799,2]
[404602369,1770325835108,-500.0,0.00014799,2]
[404602370,1770325835118,-500.0,0.00014799,2]
[404602371,1770325835128,-500.0,0.00014799,2]
[404602372,1770325835137,-500.0,0.00014799,2]
[404602373,1770325835147,-500.0,0.00014799,2]
[404602374,1770325835156,-500.0,0.00014799,2]
[404602375,1770325835166,-500.0,0.00014846,2]
[404602376,1770325835175,-200.0,0.00014846,2]
[404602377,1770325835185,-200.0,0.00014846,2]
[404602378,1770325835195,-162.55,0.00014852,2]
[404602379,1770325835204,-500.0,0.00014854,2]
[404602380,1770325835213,-1400.0,0.000149,5]
[404602381,1770325835222,-1000.0,0.000149,5]
[404602382,1770325835232,-5506.49441226,0.00014918,2]
[404602383,1770325835241,-12054.24,0.00014926,2]
[404602384,1770325835251,-250.0,0.0001496,2]
[404602385,1770325835261,-2500.0,0.0001496,2]
[404602386,1770325835271,-193.0,0.0001496,2]
[404602387,1770325835281,-483.0,0.0001496,2]
[404602388,1770325835291,-500.0,0.00015128,2]
[404602389,1770325835301,-255.0,0.00015134,2]
[404602390,1770325835314,-500.0,0.00015136,2]
[404602391,1770325835324,-500.0,0.00015136,2]
[404602392,1770325835333,-500.0,0.00015136,2]
[404602393,1770325835343,-500.0,0.00015136,2]
[404602394,1770325835352,-500.0,0.00015136,2]
[404602395,1770325835362,-500.0,0.00015136,2]
[404602396,1770325835371,-1000.0,0.00015148,2]
[404602397,1770325835381,-1000.0,0.00015148,2]
[404602398,1770325835391,-565.73255371,0.00015148,2]
[404602399,1770325835401,-1000.0,0.00015148,2]
[404602400,1770325835410,-1051.62801628,0.00015148,2]
[404602401,1770325835420,-1000.0,0.00015148,2]
[404602402,1770325835429,-1000.0,0.00015148,2]
[404602403,1770325835439,-1000.0,0.00015148,2]
[404602404,1770325835448,-1000.0,0.00015148,2]
[404602405,1770325835458,-1000.0,0.00015148,2]
[404602406,1770325835468,-166.66,0.00015191,2]
[404602407,1770325835478,-300.0,0.00015205,2]
[404602408,1770325835487,-1680.0,0.00015289,2]
[404602409,1770325835496,-290.19,0.00015346,2]
[404602410,1770325835506,-500.0,0.00015394,2]
[404602411,1770325835515,-200.0,0.00015394,2]
[404602412,1770325835525,-200.0,0.00015394,2]
[404602413,1770325835534,-500.0,0.00015402,2]
[404602414,1770325835544,-300.0,0.00015408,2]
[404602415,1770325835557,-930.53,0.0001552,2]
[404602416,1770325835567,-829.94,0.0001552,2]
[404602417,1770325835576,-500.0,0.0001552,2]
[404602418,1770325835585,-585.98,0.0001552,2]
[404602419,1770325835595,-500.0,0.0001552,2]
[404602420,1770325835604,-500.0,0.0001552,2]
[404602421,1770325835613,-199.38200897,0.0001552,2]
[404602422,1770325835623,-885.56,0.0001552,2]
[404602423,1770325835632,-9960.3950497,0.00015521,2]
[404602424,1770325835641,-761.0,0.00015537,2]
[404602425,1770325835651,-335.0,0.00015537,2]
[404602426,1770325835660,-166.66,0.00015648,2]
[404602427,1770325835670,-500.0,0.00015676,2]
[404602428,1770325835679,-18517.5144023,0.00015695,2]
[404602429,1770325835690,-1500.0,0.00015696,2]
[404602430,1770325835700,-1500.0,0.00015696,2]
[404602431,1770325835709,-1500.0,0.00015696,2]
[404602432,1770325835719,-1509.37664533,0.00015696,2]
[404602433,1770325835728,-1500.0,0.00015696,2]
[404602434,1770325835738,-1500.0,0.00015696,2]
[404602435,1770325835747,-1500.0,0.00015696,2]
[404602436,1770325835756,-1500.0,0.00015696,2]
[404602437,1770325835766,-500.0,0.00015942,2]
[404602438,1770325835776,-200.0,0.00015942,2]
[404602439,1770325835786,-200.0,0.00015942,2]
[404602440,1770325835795,-500.0,0.0001595,2]
[404602441,1770325835808,-173.89,0.00015982,2]
[404602442,1770325835818,-205.81687173,0.00016,2]
[404602443,1770325835828,-200.0,0.00016,2]
[404602444,1770325835838,-205.81687173,0.000161,2]
[404602445,1770325835847,-166.66,0.00016104,2]
[404602446,1770325835857,-200.0,0.0001616,2]
[404602447,1770325835867,-205.81687173,0.000162,2]
[404602448,1770325835876,-500.0,0.00016224,2]
[404602449,1770325835885,-7988.09293068,0.00016236,2]
[404602450,1770325835895,-12928.16673441,0.00016242,2]
[404602451,1770325835905,-2000.0,0.00016244,2]
[404602452,1770325835914,-2000.0,0.00016244,2]
[404602453,1770325835924,-2000.0,0.00016244,2]
[404602454,1770325835933,-2000.0,0.00016244,2]
[404602455,1770325835943,-2000.0,0.00016244,2]
[404602456,1770325835952,-2000.0,0.00016244,2]
[404602457,1770325835961,-2000.0,0.00016244,2]
[404602458,1770325835971,-200.0,0.00016322,2]
[404602459,1770325835980,-433.0,0.00016339,2]
[404602460,1770325835990,-500.0,0.0001642,2]
[404602461,1770325835999,-500.0,0.0001642,2]
[404602462,1770325836008,-500.0,0.0001642,2]
[404602463,1770325836018,-500.0,0.0001642,2]
[404602464,1770325836027,-500.0,0.0001642,2]
[404602465,1770325836036,-155.0,0.00016437,2]
[404602466,1770325836046,-1148.82112123,0.00016438,2]
[404602467,1770325836059,-1148.82112123,0.00016438,2]
[404602468,1770325836069,-1148.82112123,0.00016438,2]
[404602469,1770325836079,-1148.82112123,0.00016438,2]
[404602470,1770325836089,-1148.82112123,0.00016438,2]
[404602471,1770325836098,-1148.82112123,0.00016438,2]
[404602472,1770325836108,-1148.82112123,0.00016438,2]
[404602473,1770325836118,-1148.82112123,0.00016438,2]
[404602474,1770325836128,-1148.82112123,0.00016438,2]
[404602475,1770325836137,-1148.82112123,0.00016438,2]
[404602476,1770325836147,-1148.82112123,0.00016438,2]
[404602477,1770325836157,-1148.82112123,0.00016438,2]
[404602478,1770325836167,-1148.82112123,0.00016438,2]
[404602479,1770325836176,-1148.82112123,0.00016438,2]
[404602480,1770325836186,-1148.82112123,0.00016438,2]
[404602481,1770325836195,-1148.82112123,0.00016438,2]
[404602482,1770325836204,-1148.82112123,0.00016438,2]
[404602483,1770325836213,-1148.82112123,0.00016438,2]
[404602484,1770325836223,-1148.82112123,0.00016438,2]
[404602485,1770325836232,-1148.82112123,0.00016438,2]
[404602486,1770325836241,-1148.82112123,0.00016438,2]
[404602487,1770325836251,-1148.82112123,0.00016438,2]
[404602488,1770325836261,-1148.82112123,0.00016438,2]
[404602489,1770325836270,-1148.82112123,0.00016438,2]
[404602490,1770325836280,-1148.82112123,0.00016438,2]
[404602491,1770325836289,-1148.82112123,0.00016438,2]
[404602492,1770325836298,-1148.82112123,0.00016438,2]
[404602493,1770325836313,-1148.82112123,0.00016438,2]
[404602494,1770325836323,-1148.82112123,0.00016438,2]
[404602495,1770325836332,-1148.82112123,0.00016438,2]
[404602496,1770325836341,-1148.82112123,0.00016438,2]
[404602497,1770325836351,-1148.82112123,0.00016438,2]
[404602498,1770325836360,-1148.82112123,0.00016438,2]
[404602499,1770325836369,-1148.82112123,0.00016438,2]
[404602500,1770325836378,-1148.82112123,0.00016438,2]
[404602501,1770325836387,-1148.82112123,0.00016438,2]
[404602502,1770325836396,-1148.82112123,0.00016438,2]
[404602503,1770325836405,-1148.82112123,0.00016438,2]
[404602504,1770325836414,-1148.82112123,0.00016438,2]
[404602505,1770325836423,-1148.82112123,0.00016438,2]
[404602506,1770325836432,-1148.82112123,0.00016438,2]
[404602507,1770325836441,-1148.82112123,0.00016438,2]
[404602508,1770325836450,-1148.82112123,0.00016438,2]
[404602509,1770325836459,-1148.82112123,0.00016438,2]
[404602510,1770325836468,-1148.82112123,0.00016438,2]
[404602511,1770325836476,-1148.82112123,0.00016438,2]
[404602512,1770325836485,-1148.82112123,0.00016438,2]
[404602513,1770325836494,-1377.0578488,0.00016438,2]
[404602514,1770325836503,-1377.0578488,0.00016438,2]
[404602515,1770325836512,-1377.0578488,0.00016438,2]
[404602516,1770325836521,-1377.0578488,0.00016438,2]
[404602517,1770325836531,-1377.0578488,0.00016438,2]
[404602518,1770325836540,-1377.0578488,0.00016438,2]
[404602519,1770325836550,-1377.0578488,0.00016438,2]
[404602520,1770325836562,-1377.0578488,0.00016438,2]
[404602521,1770325836571,-1377.0578488,0.00016438,2]
[404602522,1770325836581,-1377.0578488,0.00016438,2]
[404602523,1770325836591,-1377.0578488,0.00016438,2]
[404602524,1770325836600,-1377.0578488,0.00016438,2]
[404602525,1770325836610,-1377.0578488,0.00016438,2]
[404602526,1770325836619,-1377.0578488,0.00016438,2]
[404602527,1770325836629,-1377.0578488,0.00016438,2]
[404602528,1770325836638,-1377.0578488,0.00016438,2]
[404602529,1770325836648,-1377.0578488,0.00016438,2]
[404602530,1770325836658,-1377.0578488,0.00016438,2]
[404602531,1770325836668,-1377.0578488,0.00016438,2]
[404602532,1770325836678,-1377.0578488,0.00016438,2]
[404602533,1770325836688,-1377.0578488,0.00016438,2]
[404602534,1770325836697,-1377.0578488,0.00016438,2]
[404602535,1770325836707,-1377.0578488,0.00016438,2]
[404602536,1770325836716,-1377.0578488,0.00016438,2]
[404602537,1770325836725,-1377.0578488,0.00016438,2]
[404602538,1770325836735,-1377.0578488,0.00016438,2]
[404602539,1770325836744,-1377.0578488,0.00016438,2]
[404602540,1770325836753,-1377.0578488,0.00016438,2]
[404602541,1770325836764,-1377.0578488,0.00016438,2]
[404602542,1770325836774,-1377.0578488,0.00016438,2]
[404602543,1770325836783,-1377.0578488,0.00016438,2]
[404602544,1770325836793,-1377.0578488,0.00016438,2]
[404602545,1770325836803,-1377.0578488,0.00016438,2]
[404602546,1770325836818,-1377.0578488,0.00016438,2]
[404602547,1770325836827,-1377.0578488,0.00016438,2]
[404602548,1770325836837,-1377.0578488,0.00016438,2]
[404602549,1770325836846,-1377.0578488,0.00016438,2]
[404602550,1770325836855,-1377.0578488,0.00016438,2]
[404602551,1770325836864,-1377.05784882,0.00016438,2]
[404602552,1770325836874,-1377.05784882,0.00016438,2]
[404602553,1770325836883,-1377.05784882,0.00016438,2]
[404602554,1770325836892,-1377.05784882,0.00016438,2]
[404602555,1770325836901,-800.0,0.00016438,2]
[404602556,1770325836910,-200.0,0.00016485,2]
[404602557,1770325836920,-500.0,0.0001649,2]
[404602558,1770325836929,-200.0,0.0001649,2]
[404602559,1770325836938,-200.0,0.0001649,2]
[404602560,1770325836948,-500.0,0.00016498,2]
[404602561,1770325836957,-200.0,0.0001665,2]
[404602562,1770325836966,-500.0,0.00016772,2]
[404602563,1770325836976,-2500.0,0.00016792,2]
[404602564,1770325836985,-2500.0,0.00016792,2]
[404602565,1770325836995,-2500.0,0.00016792,2]
[404602566,1770325837005,-1746.94109686,0.00016792,2]
[404602567,1770325837015,-2500.0,0.00016792,2]
[404602568,1770325837024,-2500.0,0.00016792,2]
[404602569,1770325837034,-2462.0003218,0.00016792,2]
[404602570,1770325837043,-2351.0,0.00016818,2]
[404602571,1770325837052,-14290.04,0.00016994,2]
[404602572,1770325837068,-500.0,0.00017037,2]
[404602573,1770325837078,-500.0,0.00017038,2]
[404602574,1770325837088,-200.0,0.00017038,2]
[404602575,1770325837097,-200.0,0.00017038,2]
[404602576,1770325837108,-500.0,0.00017046,2]
[404602577,1770325837118,-18517.5144023,0.00017291,2]
[404602578,1770325837128,-173.89,0.00017313,2]
[404602579,1770325837137,-500.0,0.0001732,2]
[404602580,1770325837150,-242.10038489,0.0001734,2]
[404602581,1770325837159,-557.69661282,0.0001734,2]
[404602582,1770325837168,-3000.0,0.0001734,2]
[404602583,1770325837177,-3000.0,0.0001734,2]
[404602584,1770325837187,-3000.0,0.0001734,2]
[404602585,1770325837196,-160.0,0.00017514,2]
[404602586,1770325837205,-802.64621721,0.00017534,2]
[404602587,1770325837378,-500.0,0.00017586,2]
[404602588,1770325837388,-200.0,0.00017586,2]
[404602589,1770325837398,-200.0,0.00017586,2]
[404602590,1770325837407,-500.0,0.00017594,2]
[404602591,1770325837417,-736.0,0.00017656,2]
[404602592,1770325837426,-500.0,0.00017868,2]
[404602593,1770325837435,-1827.70695956,0.00017888,2]
[404602594,1770325837444,-617.46581372,0.00017888,2]